lending/lending_fUSD_20240509
["ID","MTS","AMOUNT","RATE_DAILY","PERIOD"]
[326741111,1715293859555,-500.0,0.00030502,5]
[326741112,1715293859564,-500.0,0.00030502,5]
[326741113,1715293859573,-686.49,0.00030502,5]
[326741114,1715293859583,-232.27789178,0.00030502,5]
[326741115,1715293859592,-500.0,0.00030502,5]
[326741116,1715293859601,-500.0,0.00030502,5]
[326741117,1715293859610,-500.0,0.00030502,5]
[326741118,1715293859620,-500.0,0.00030502,5]
[326741119,1715293859629,-500.0,0.00030502,5]
[326741120,1715293859639,-500.0,0.00030502,5]
[326741121,1715293859648,-151.0,0.00030502,7]
[326741122,1715293859658,-500.0,0.00030502,5]
[326741123,1715293859667,-500.0,0.00030502,5]
[326741124,1715293859677,-1153.84,0.00030502,5]
[326741125,1715293859686,-151.0,0.00030502,7]
[326741126,1715293859696,-403.03,0.00030502,5]
[326741127,1715293859705,-500.0,0.00030502,5]
[326741128,1715293859716,-500.0,0.00030502,5]
[326741129,1715293859725,-911.03,0.00030502,5]
[326741130,1715293859735,-500.0,0.00030502,5]
[326741131,1715293859744,-500.0,0.00030502,5]
[326741132,1715293859754,-543.75239111,0.00030502,5]
[326741133,1715293859763,-822.08,0.00030502,5]
[326741134,1715293859773,-500.0,0.00030502,5]
[326741135,1715293859784,-500.0,0.00030502,5]
[326741136,1715293859794,-500.0,0.00030502,5]
[326741137,1715293859803,-500.0,0.00030502,5]
[326741138,1715293859814,-500.0,0.00030502,5]
[326741139,1715293859824,-907.66,0.00030502,5]
[326741140,1715293859834,-500.0,0.00030502,5]
[326741141,1715293859845,-500.0,0.00030502,5]
[326741142,1715293859854,-500.0,0.00030502,5]
[326741143,1715293859864,-567.21,0.00030502,5]
[326741144,1715293859873,-500.0,0.00030502,5]
[326741145,1715293859884,-151.0,0.00030502,7]
[326741146,1715293859894,-151.0,0.00030502,7]
[326741147,1715293859906,-500.0,0.00030502,5]
[326741148,1715293860166,-637.96234032,0.00030502,5]
[326741149,1715293860224,-635.09535837,0.00030502,5]
[326741150,1715293860234,-500.0,0.00030502,5]
[326741151,1715293860244,-500.0,0.00030502,5]
[326741152,1715293860255,-281.049923,0.00030502,7]
[326741153,1715293860264,-500.0,0.00030502,5]
[326741154,1715293860274,-500.0,0.00030502,5]
[326741155,1715293860284,-500.0,0.00030502,5]
[326741156,1715293860294,-500.0,0.00030502,5]
[326741157,1715293860304,-1003.31,0.00030502,5]
[326741158,1715293860313,-500.0,0.00030502,5]
[326741159,1715293860323,-500.0,0.00030502,5]
[326741160,1715293860333,-1318.03,0.00030502,5]
[326741161,1715293860343,-500.0,0.00030502,5]
[326741162,1715293860352,-500.0,0.00030502,5]
[326741163,1715293860362,-500.0,0.00030502,5]
[326741164,1715293860371,-587.94,0.00030502,5]
[326741165,1715293860381,-500.0,0.00030502,5]
[326741166,1715293860390,-588.42,0.00030502,5]
[326741167,1715293860400,-151.0,0.00030502,7]
[326741168,1715293860410,-500.0,0.00030502,5]
[326741169,1715293860419,-500.0,0.00030502,5]
[326741170,1715293860429,-500.0,0.00030502,5]
[326741171,1715293860439,-151.0,0.00030502,7]
[326741172,1715293860448,-500.0,0.00030502,5]
[326741173,1715293860458,-500.0,0.00030502,5]
[326741174,1715293860471,-151.0,0.00030502,7]
[326741175,1715293860480,-151.0,0.00030502,7]
[326741176,1715293860489,-151.0,0.00030502,7]
[326741177,1715293860498,-500.0,0.00030502,5]
[326741178,1715293860507,-712.69,0.00030502,5]
[326741179,1715293860516,-500.0,0.00030502,5]
[326741180,1715293860525,-500.0,0.00030502,5]
[326741181,1715293860535,-903.85,0.00030502,5]
[326741182,1715293860545,-500.0,0.00030502,5]
[326741183,1715293860555,-500.0,0.00030502,5]
[326741184,1715293860564,-8716.35,0.00030502,5]
[326741185,1715293860574,-500.0,0.00030502,5]
[326741186,1715293860583,-500.0,0.00030502,5]
[326741187,1715293860593,-500.0,0.00030502,5]
[326741188,1715293860602,-4766.17,0.00030502,5]
[326741189,1715293860612,-500.0,0.00030502,5]
[326741190,1715293860622,-500.0,0.00030502,5]
[326741191,1715293860631,-151.0,0.00030502,7]
[326741192,1715293860641,-151.0,0.00030502,7]
[326741193,1715293860650,-151.0,0.00030502,7]
[326741194,1715293860660,-6186.8,0.00030502,5]
[326741195,1715293860670,-151.0,0.00030502,7]
[326741196,1715293860680,-1116.77,0.00030502,5]
[326741197,1715293860689,-500.0,0.00030502,5]
[326741198,1715293860699,-724.67,0.00030502,5]
[326741199,1715293860712,-274.64346877,0.00030502,5]
[326741200,1715293860721,-8009.64,0.00030502,5]
[326741201,1715293860730,-151.0,0.00030502,7]
[326741202,1715293860739,-735.96,0.00030502,5]
[326741203,1715293860748,-500.0,0.00030502,5]
[326741204,1715293860758,-151.0,0.00030502,7]
[326741205,1715293860767,-826.16,0.00030502,5]
[326741206,1715293860777,-151.0,0.00030502,7]
[326741207,1715293860788,-665.49,0.00030502,5]
[326741208,1715293860798,-4764.38,0.00030502,5]
[326741209,1715293860807,-151.0,0.00030502,7]
[326741210,1715293860816,-500.0,0.00030502,5]
[326741211,1715293860826,-500.0,0.00030502,5]
[326741212,1715293860836,-753.47,0.00030502,5]
[326741213,1715293860845,-151.0,0.00030502,7]
[326741214,1715293860855,-500.0,0.00030502,5]
[326741215,1715293860865,-9226.67,0.00030502,5]
[326741216,1715293860874,-1147.41,0.00030502,5]
[326741217,1715293860884,-977.42,0.00030502,5]
[326741218,1715293860893,-10653.59,0.00030502,5]
[326741219,1715293860902,-151.0,0.00030502,7]
[326741220,1715293860911,-500.0,0.00030502,5]
[326741221,1715293860921,-500.0,0.00030502,5]
[326741222,1715293860930,-4395.43,0.00030502,5]
[326741223,1715293860940,-500.0,0.00030502,5]
[326741224,1715293860949,-151.0,0.00030502,7]
[326741225,1715293860962,-937.65,0.00030502,5]
[326741226,1715293860975,-500.0,0.00030502,5]
[326741227,1715293860984,-151.0,0.00030502,7]
[326741228,1715293860994,-650.84,0.00030502,5]
[326741229,1715293861003,-3324.79,0.00030502,5]
[326741230,1715293861014,-3773.67,0.00030502,5]
[326741231,1715293861023,-500.0,0.00030502,5]
[326741232,1715293861031,-975.97,0.00030502,5]
[326741233,1715293861041,-3659.67,0.00030502,5]
[326741234,1715293861052,-645.26,0.00030502,5]
[326741235,1715293861062,-151.0,0.00030502,7]
[326741236,1715293861071,-151.0,0.00030502,7]
[326741237,1715293861081,-6399.14,0.00030502,5]
[326741238,1715293861090,-152.104996,0.00030502,7]
[326741239,1715293861099,-151.0,0.00030502,7]
[326741240,1715293861109,-151.0,0.00030502,7]
[326741241,1715293861118,-500.0,0.00030502,5]
[326741242,1715293861127,-1341.46,0.00030502,5]
[326741243,1715293861137,-156.503808,0.00030502,7]
[326741244,1715293861146,-500.0,0.00030502,5]
[326741245,1715293861155,-1820.0,0.00030502,5]
[326741246,1715293861165,-3363.22,0.00030502,5]
[326741247,1715293861174,-500.0,0.00030502,5]
[326741248,1715293861183,-3814.01,0.00030502,5]
[326741249,1715293861192,-543.68,0.00030502,5]
[326741250,1715293861201,-151.0,0.00030502,7]
[326741251,1715293861214,-151.0,0.00030502,7]
[326741252,1715293861224,-961.73,0.00030502,5]
[326741253,1715293861233,-500.0,0.00030502,5]
[326741254,1715293861242,-500.0,0.00030502,5]
[326741255,1715293861251,-500.0,0.00030502,5]
[326741256,1715293861260,-2465.25,0.00030502,5]
[326741257,1715293861269,-2998.89,0.00030502,5]
[326741258,1715293861278,-1200.0,0.00030502,2]
[326741259,1715293861288,-4933.54,0.00030502,5]
[326741260,1715293861297,-637.97,0.00030502,5]
[326741261,1715293861306,-500.0,0.00030502,5]
[326741262,1715293861316,-500.0,0.00030502,5]
[326741263,1715293861325,-1106.57,0.00030502,5]
[326741264,1715293861334,-500.0,0.00030502,5]
[326741265,1715293861343,-14810.6,0.00030502,5]
[326741266,1715293861353,-500.0,0.00030502,5]
[326741267,1715293861362,-500.0,0.00030502,5]
[326741268,1715293861372,-500.0,0.00030502,5]
[326741269,1715293861381,-3910.31,0.00030502,5]
[326741270,1715293861390,-500.0,0.00030502,5]
[326741271,1715293861400,-500.0,0.00030502,5]
[326741272,1715293861409,-857.48,0.00030502,5]
[326741273,1715293861418,-564.14863695,0.00030502,5]
[326741274,1715293861427,-500.0,0.00030502,5]
[326741275,1715293861437,-250.92142652,0.00030502,5]
[326741276,1715293861446,-262.05626811,0.00030502,5]
[326741277,1715293861455,-500.0,0.00030502,5]
[326741278,1715293861466,-3898.83,0.00030502,5]
[326741279,1715293861475,-500.0,0.00030502,5]
[326741280,1715293861485,-1445.05,0.00030502,5]
[326741281,1715293861494,-500.0,0.00030502,5]
[326741282,1715293861503,-575.24,0.00030502,5]
[326741283,1715293861512,-500.0,0.00030502,5]
[326741284,1715293861522,-3115.8,0.00030502,5]
[326741285,1715293861531,-506.35762327,0.00030502,5]
[326741286,1715293861540,-668.31,0.00030502,5]
[326741287,1715293861549,-4413.05,0.00030502,5]
[326741288,1715293861558,-151.0,0.00030502,7]
[326741289,1715293861567,-657.06,0.00030502,5]
[326741290,1715293861576,-3210.07,0.00030502,5]
[326741291,1715293861586,-1862.72,0.00030502,5]
[326741292,1715293861596,-500.0,0.00030502,5]
[326741293,1715293861605,-151.0,0.00030502,5]
[326741294,1715293861614,-500.0,0.00030502,5]
[326741295,1715293861624,-1142.35,0.00030502,5]
[326741296,1715293861634,-3268.14,0.00030502,5]
[326741297,1715293861643,-3688.36,0.00030502,5]
[326741298,1715293861652,-500.0,0.00030502,5]
[326741299,1715293861661,-151.0,0.00030502,7]
[326741300,1715293861670,-3896.69,0.00030502,5]
[326741301,1715293861680,-500.0,0.00030502,5]
[326741302,1715293861689,-207.07996,0.00030502,7]
[326741303,1715293861698,-3057.16,0.00030502,5]
[326741304,1715293861711,-708.2,0.00030502,5]
[326741305,1715293861719,-151.0,0.00030502,7]
[326741306,1715293861728,-500.0,0.00030502,5]
[326741307,1715293861738,-207.07996,0.00030502,7]
[326741308,1715293861748,-5437.1,0.00030502,5]
[326741309,1715293861757,-500.0,0.00030502,5]
[326741310,1715293861766,-2960.44,0.00030502,5]
[326741311,1715293861776,-500.0,0.00030502,5]
[326741312,1715293861785,-3002.94,0.00030502,5]
[326741313,1715293861795,-500.0,0.00030502,5]
[326741314,1715293861804,-500.0,0.00030502,5]
[326741315,1715293861813,-151.0,0.00030502,7]
[326741316,1715293861823,-1336.23,0.00030502,5]
[326741317,1715293861832,-500.0,0.00030502,5]
[326741318,1715293861842,-500.0,0.00030502,5]
[326741319,1715293861851,-500.0,0.00030502,5]
[326741320,1715293861861,-151.0,0.00030502,7]
[326741321,1715293861870,-151.0,0.00030502,7]
[326741322,1715293861879,-8830.97,0.00030502,5]
[326741323,1715293861888,-858.99,0.00030502,5]
[326741324,1715293861897,-500.0,0.00030502,5]
[326741325,1715293861907,-533.87,0.00030502,5]
[326741326,1715293861916,-2428.63,0.00030502,5]
[326741327,1715293861925,-216.75313844,0.00030502,5]
[326741328,1715293861935,-500.0,0.00030502,5]
[326741329,1715293861944,-500.0,0.00030502,5]
[326741330,1715293861954,-32374.39,0.00030502,5]
[326741331,1715293861967,-9153.24,0.00030502,5]
[326741332,1715293861980,-961.31,0.00030502,5]
[326741333,1715293861989,-151.0,0.00030502,7]
[326741334,1715293861998,-151.0,0.00030502,7]
[326741335,1715293862009,-151.0,0.00030502,7]
[326741336,1715293862019,-504.94892508,0.00030502,5]
[326741337,1715293862029,-151.0,0.00030502,7]
[326741338,1715293862038,-153.88080458,0.00030503,5]
[326741339,1715293862047,-200.0,0.00030503,5]
[326741340,1715293862058,-500.0,0.00030503,5]
[326741341,1715293862067,-500.0,0.00030503,5]
[326741342,1715293862077,-500.0,0.00030503,5]
[326741343,1715293862086,-525.16937602,0.00030503,5]
[326741344,1715293862095,-500.0,0.00030503,5]
[326741345,1715293862105,-500.0,0.00030503,5]
[326741346,1715293862114,-500.0,0.00030503,5]
[326741347,1715293862124,-500.0,0.00030503,5]
[326741348,1715293862133,-500.0,0.00030503,5]
[326741349,1715293862142,-500.0,0.00030503,5]
[326741350,1715293862152,-503.95358985,0.00030503,5]
[326741351,1715293862162,-856.62,0.00030503,5]
[326741352,1715293862171,-500.0,0.00030503,5]
[326741353,1715293862181,-912.77,0.00030503,5]
[326741354,1715293862191,-500.0,0.00030503,5]
[326741355,1715293862200,-500.0,0.00030503,5]
[326741356,1715293862210,-500.0,0.00030503,5]
[326741357,1715293862219,-500.0,0.00030503,5]
[326741358,1715293862228,-500.0,0.00030503,5]
[326741359,1715293862238,-500.0,0.00030503,5]
[326741360,1715293862247,-796.74,0.00030503,5]
[326741361,1715293862256,-633.53,0.00030503,5]
[326741362,1715293862265,-609.98,0.00030503,5]
[326741363,1715293862275,-500.0,0.00030503,5]
[326741364,1715293862285,-880.7,0.00030503,5]
[326741365,1715293862296,-500.0,0.00030503,5]
[326741366,1715293862305,-824.07,0.00030503,5]
[326741367,1715293862313,-500.0,0.00030503,5]
[326741368,1715293862323,-151.0,0.00030503,7]
[326741369,1715293862332,-151.0,0.00030503,7]
[326741370,1715293862342,-500.0,0.00030503,5]
[326741371,1715293862351,-500.0,0.00030503,5]
[326741372,1715293862362,-781.51,0.00030503,5]
[326741373,1715293862371,-151.0,0.00030503,7]
[326741374,1715293862381,-181.37,0.00030503,5]
[326741375,1715293862390,-837.36,0.00030503,5]
[326741376,1715293862401,-500.0,0.00030503,5]
[326741377,1715293862412,-511.07,0.00030503,5]
[326741378,1715293862422,-533.85108412,0.00030503,5]
[326741379,1715293862432,-836.41,0.00030503,5]
[326741380,1715293862442,-907.97,0.00030503,5]
[326741381,1715293862452,-786.43,0.00030503,5]
[326741382,1715293862463,-500.0,0.00030503,5]
[326741383,1715293862472,-577.23,0.00030503,5]
[326741384,1715293862481,-681.82,0.00030503,5]
[326741385,1715293862490,-955.99,0.00030503,5]
[326741386,1715293862580,-563.06,0.00030503,5]
[326741387,1715293862590,-500.0,0.00030503,5]
[326741388,1715293862600,-500.0,0.00030503,5]
[326741389,1715293862609,-500.0,0.00030503,5]
[326741390,1715293862618,-500.0,0.00030503,5]
[326741391,1715293862628,-500.0,0.00030503,5]
[326741392,1715293862637,-151.0,0.00030503,7]
[326741393,1715293862646,-500.0,0.00030503,5]
[326741394,1715293862655,-500.0,0.00030503,5]
[326741395,1715293862664,-151.0,0.00030503,7]
[326741396,1715293862673,-151.0,0.00030503,7]
[326741397,1715293862682,-500.0,0.00030503,5]
[326741398,1715293862691,-500.0,0.00030503,5]
[326741399,1715293862700,-504.25,0.00030503,5]
[326741400,1715293862711,-1002.19,0.00030503,5]
[326741401,1715293862720,-505.18,0.00030503,5]
[326741402,1715293862729,-500.0,0.00030503,5]
[326741403,1715293862739,-1306.02,0.00030503,5]
[326741404,1715293862748,-500.0,0.00030503,5]
[326741405,1715293862758,-500.0,0.00030503,5]
[326741406,1715293862767,-872.37,0.00030503,5]
[326741407,1715293862777,-500.0,0.00030503,5]
[326741408,1715293862787,-151.0,0.00030503,7]
[326741409,1715293862796,-500.0,0.00030503,5]
[326741410,1715293862805,-504.05723999,0.00030503,5]
[326741411,1715293862815,-500.0,0.00030503,5]
[326741412,1715293862824,-500.0,0.00030503,5]
[326741413,1715293862833,-500.0,0.00030503,5]
[326741414,1715293862843,-500.0,0.00030503,5]
[326741415,1715293862852,-500.0,0.00030503,5]
[326741416,1715293862862,-500.0,0.00030503,5]
[326741417,1715293862872,-500.0,0.00030503,5]
[326741418,1715293862882,-500.0,0.00030503,5]
[326741419,1715293862893,-907.16,0.00030503,5]
[326741420,1715293862903,-1107.71,0.00030503,5]
[326741421,1715293862913,-500.0,0.00030503,5]
[326741422,1715293862923,-500.0,0.00030503,5]
[326741423,1715293862933,-500.0,0.00030503,5]
[326741424,1715293862942,-500.0,0.00030503,5]
[326741425,1715293862951,-632.63,0.00030503,5]
[326741426,1715293862962,-1068.59,0.00030503,5]
[326741427,1715293862983,-882.72,0.00030503,5]
[326741428,1715293862995,-283.264101,0.00030503,7]
[326741429,1715293863007,-500.0,0.00030503,5]
[326741430,1715293863016,-500.0,0.00030503,5]
[326741431,1715293863026,-634.06,0.00030503,5]
[326741432,1715293863036,-500.0,0.00030503,5]
[326741433,1715293863046,-500.0,0.00030503,5]
[326741434,1715293863056,-758.05,0.00030503,5]
[326741435,1715293863065,-500.0,0.00030503,5]
[326741436,1715293863075,-500.0,0.00030503,5]
[326741437,1715293863085,-500.0,0.00030503,5]
[326741438,1715293863095,-500.0,0.00030503,5]
[326741439,1715293863104,-151.0,0.00030503,7]
[326741440,1715293863114,-217.319976,0.00030503,7]
[326741441,1715293863124,-500.0,0.00030503,5]
[326741442,1715293863134,-657.0,0.00030503,5]
[326741443,1715293863143,-1132.92,0.00030503,5]
[326741444,1715293863152,-151.0,0.00030503,7]
[326741445,1715293863162,-500.0,0.00030503,5]
[326741446,1715293863171,-797.21,0.00030503,5]
[326741447,1715293863181,-500.0,0.00030503,5]
[326741448,1715293863190,-500.0,0.00030503,5]
[326741449,1715293863199,-602.93,0.00030503,5]
[326741450,1715293863209,-785.62,0.00030503,5]
[326741451,1715293863221,-151.0,0.00030503,7]
[326741452,1715293863231,-500.0,0.00030503,5]
[326741453,1715293863240,-151.0,0.00030503,7]
[326741454,1715293863250,-500.0,0.00030503,5]
[326741455,1715293863259,-745.29,0.00030503,5]
[326741456,1715293863268,-1470.13,0.00030503,5]
[326741457,1715293863278,-151.0,0.00030503,7]
[326741458,1715293863287,-500.0,0.00030503,5]
[326741459,1715293863297,-650.29,0.00030503,5]
[326741460,1715293863307,-1226.22,0.00030503,5]
[326741461,1715293863316,-879.41,0.00030503,5]
[326741462,1715293863326,-500.0,0.00030503,5]
[326741463,1715293863336,-151.0,0.00030503,7]
[326741464,1715293863346,-500.0,0.00030503,5]
[326741465,1715293863356,-500.0,0.00030503,5]
[326741466,1715293863365,-151.0,0.00030503,7]
[326741467,1715293863375,-500.0,0.00030503,5]
[326741468,1715293863385,-500.0,0.00030503,5]
[326741469,1715293863394,-500.0,0.00030503,5]
[326741470,1715293863404,-500.0,0.00030503,5]
[326741471,1715293863414,-500.0,0.00030503,5]
[326741472,1715293863424,-284.527103,0.00030503,7]
[326741473,1715293863434,-500.0,0.00030503,5]
[326741474,1715293863444,-500.0,0.00030503,5]
[326741475,1715293863454,-500.0,0.00030503,5]
[326741476,1715293863466,-284.527103,0.00030503,7]
[326741478,1715293863476,-2317.3,0.00030503,5]
[326741479,1715293863486,-1560.92,0.00030503,5]
[326741480,1715293863495,-151.0,0.00030503,7]
[326741482,1715293863505,-500.0,0.00030503,5]
[326741483,1715293863514,-525.22,0.00030503,5]
[326741484,1715293863524,-500.0,0.00030503,5]
[326741485,1715293863534,-911.3,0.00030503,5]
[326741486,1715293863543,-500.0,0.00030503,5]
[326741487,1715293863553,-186.957461,0.00030503,7]
[326741488,1715293863563,-2042.99,0.00030503,5]
[326741489,1715293863572,-186.957461,0.00030503,7]
[326741490,1715293863582,-500.0,0.00030503,5]
[326741491,1715293863591,-500.0,0.00030503,5]
[326741492,1715293863601,-1315.95,0.00030503,5]
[326741493,1715293863611,-700.81,0.00030503,5]
[326741494,1715293863620,-2156.65,0.00030503,5]
[326741495,1715293863629,-500.0,0.00030503,5]
[326741496,1715293863639,-151.0,0.00030503,7]
[326741497,1715293863648,-500.0,0.00030503,5]
[326741498,1715293863658,-1279.75,0.00030503,5]
[326741499,1715293863667,-500.0,0.00030503,5]
[326741500,1715293863677,-1566.01,0.00030503,5]
[326741501,1715293863686,-726.88,0.00030503,5]
[326741502,1715293863696,-151.0,0.00030503,7]
[326741503,1715293863706,-151.0,0.00030503,7]
[326741504,1715293863718,-1184.85,0.00030503,5]
[326741505,1715293863727,-500.0,0.00030503,5]
[326741506,1715293863736,-500.0,0.00030503,5]
[326741507,1715293863745,-1545.95,0.00030503,5]
[326741508,1715293863755,-1075.45,0.00030503,5]
[326741509,1715293863764,-151.0,0.00030503,7]
[326741510,1715293863773,-632.52,0.00030503,5]
[326741511,1715293863783,-500.0,0.00030503,5]
[326741512,1715293863792,-151.0,0.00030503,7]
[326741513,1715293863802,-1912.9,0.00030503,5]
[326741514,1715293863812,-820.26,0.00030503,5]
[326741515,1715293863822,-500.0,0.00030503,5]
[326741516,1715293863832,-500.0,0.00030503,5]
[326741517,1715293863842,-1282.17,0.00030503,5]
[326741518,1715293863852,-634.65,0.00030503,5]
[326741519,1715293863862,-505.92800504,0.00030503,5]
[326741520,1715293863871,-2475.64,0.00030503,5]
[326741521,1715293863881,-1272.21,0.00030503,5]
[326741522,1715293863890,-579.27,0.00030503,5]
[326741523,1715293863899,-500.0,0.00030503,5]
[326741524,1715293863908,-653.58,0.00030503,5]
[326741525,1715293863917,-500.0,0.00030503,5]
[326741526,1715293863926,-500.0,0.00030503,5]
[326741527,1715293863935,-727.43,0.00030503,5]
[326741528,1715293863952,-2129.03,0.00030503,5]
[326741529,1715293863962,-500.0,0.00030503,5]
[326741530,1715293863976,-1327.97,0.00030503,5]
[326741531,1715293863986,-500.0,0.00030503,5]
[326741532,1715293863995,-1172.26,0.00030503,5]
[326741533,1715293864007,-500.0,0.00030503,5]
[326741534,1715293864018,-1512.17,0.00030503,5]
[326741535,1715293864028,-500.0,0.00030503,5]
[326741536,1715293864037,-250.64626383,0.00030503,5]
[326741537,1715293864047,-1335.66,0.00030503,5]
[326741538,1715293864057,-500.0,0.00030503,5]
[326741539,1715293864066,-1661.93,0.00030503,5]
[326741540,1715293864075,-500.0,0.00030503,5]
[326741541,1715293864085,-1590.74,0.00030503,5]
[326741542,1715293864094,-500.0,0.00030503,5]
[326741543,1715293864104,-500.0,0.00030503,5]
[326741544,1715293864114,-3000.0,0.00030503,5]
[326741545,1715293864123,-909.39,0.00030503,5]
[326741546,1715293864133,-560.62,0.00030503,5]
[326741547,1715293864143,-1190.57,0.00030503,5]
[326741548,1715293864152,-602.19,0.00030503,5]
[326741549,1715293864162,-500.0,0.00030503,5]
[326741550,1715293864172,-561.95,0.00030503,5]
[326741551,1715293864182,-1000.0,0.00030503,5]
[326741552,1715293864192,-1094.65,0.00030503,5]
[326741553,1715293864202,-2226.73,0.00030503,5]
[326741554,1715293864212,-1119.13,0.00030503,5]
[326741555,1715293864221,-500.0,0.00030503,5]
[326741556,1715293864231,-500.0,0.00030503,5]
[326741557,1715293864239,-1253.16,0.00030503,5]
[326741558,1715293864249,-1394.63,0.00030503,5]
[326741559,1715293864258,-1394.52,0.00030503,5]
[326741560,1715293864268,-500.0,0.00030503,5]
[326741561,1715293864277,-2092.99,0.00030503,5]
[326741562,1715293864287,-500.0,0.00030503,5]
[326741563,1715293864296,-599.25,0.00030503,5]
[326741564,1715293864305,-1278.72,0.00030503,5]
[326741565,1715293864314,-686.52,0.00030503,5]
[326741566,1715293864324,-500.0,0.00030503,5]
[326741567,1715293864333,-962.49,0.00030503,5]
[326741568,1715293864343,-843.35,0.00030503,5]
[326741569,1715293864354,-1568.28,0.00030503,5]
[326741570,1715293864363,-1210.45,0.00030503,5]
[326741571,1715293864372,-695.15,0.00030503,5]
[326741572,1715293864381,-535.15,0.00030503,5]
[326741573,1715293864391,-1095.0,0.00030503,5]
[326741574,1715293864400,-500.0,0.00030503,5]
[326741575,1715293864409,-500.0,0.00030503,5]
[326741576,1715293864418,-2921.83,0.00030503,5]
[326741577,1715293864427,-948.86,0.00030503,5]
[326741578,1715293864436,-2052.14,0.00030503,5]
[326741579,1715293864445,-1185.04,0.00030503,5]
[326741580,1715293864454,-1571.12,0.00030503,5]
[326741581,1715293864466,-500.0,0.00030503,5]
[326741582,1715293864475,-500.0,0.00030503,5]
[326741583,1715293864484,-966.86,0.00030503,5]
[326741584,1715293864493,-500.0,0.00030503,5]
[326741585,1715293864503,-500.0,0.00030503,5]
[326741586,1715293864512,-500.0,0.00030503,5]
[326741587,1715293864521,-500.0,0.00030503,5]
[326741588,1715293864530,-1241.38,0.00030503,5]
[326741589,1715293864539,-506.92244803,0.00030503,5]
[326741590,1715293864549,-1734.5,0.00030503,5]
[326741591,1715293864558,-500.0,0.00030503,5]
[326741592,1715293864567,-1120.69,0.00030503,5]
[326741593,1715293864576,-500.0,0.00030503,5]
[326741594,1715293864585,-1210.81,0.00030503,5]
[326741595,1715293864595,-500.0,0.00030503,5]
[326741596,1715293864603,-1585.28,0.00030503,5]
[326741597,1715293864613,-500.0,0.00030503,5]
[326741598,1715293864622,-1478.87,0.00030503,5]
[326741599,1715293864631,-1647.53,0.00030503,5]
[326741600,1715293864640,-500.0,0.00030503,5]
[326741601,1715293864650,-500.0,0.00030503,5]
[326741602,1715293864659,-2839.4,0.00030503,5]
[326741603,1715293864668,-500.0,0.00030503,5]
[326741604,1715293864677,-1351.68,0.00030503,5]
[326741605,1715293864687,-1612.82,0.00030503,5]
[326741606,1715293864696,-508.90147753,0.00030503,5]
[326741607,1715293864705,-1417.55,0.00030503,5]
[326741608,1715293864717,-500.0,0.00030503,5]
[326741609,1715293864726,-500.0,0.00030503,5]
[326741610,1715293864735,-500.0,0.00030503,5]
[326741611,1715293864744,-1782.3,0.00030503,5]
[326741612,1715293864753,-500.0,0.00030503,5]